Cogmind - Beta 13 @@@ ROGUE MODE // 2024.04.20 @ 03:38:55 Player: luckinvolved Result: Destroyed by P-80 Master with Gamma Rifle Performance ------------- Evolutions (7) 3500 Regions Visited (11) 2200 Robots Destroyed (125) 625 Value Destroyed (4573) 4573 Prototype IDs (8) 160 Alien Tech Used (0) 0 Bonus (538) 538 TOTAL SCORE: 11596 Bonus ------- High Alert Combat Kills 38 Entered DSFs 500 Cogmind --------- Core Integrity 0/1300 Matter 14/300 Energy 85/100 System Corruption 33% Temperature Cool (0) Movement Core (50) Location -3/Research Parts ------- > --- POWER (2) -------- (None) > --- PROPULSION (6) --- (None) > --- UTILITY (10) ----- Improved Salvage Targeting Computer Improved Melee Analysis Suite > --- WEAPON (3) ------- (None) > --- INVENTORY (5) ---- Large Storage Unit Matter Compressor (0) Peak State ------------ > --- POWER ------------ Improved Fusion Compressor > --- PROPULSION ------- Improved Heavy Siege Treads Improved Heavy Siege Treads Improved Heavy Siege Treads > --- UTILITY ---------- Advanced Heat Sink Long-range Sensor Array Advanced Signal Interpreter Improved Salvage Targeting Computer Improved Melee Analysis Suite Advanced Transmission Jammer Advanced ECM Suite Experimental Thermal Shield > --- WEAPON ----------- Improved Lightning Gun Linear Accelerator > --- INVENTORY -------- Light Particle Reactor Advanced Heat Sink Large Storage Unit Matter Compressor [Rating: 115] Favorites ----------- Power Ion Engine Engine Ion Engine Power Core Light Fission Core Reactor Light Antimatter Reactor Propulsion Armored Treads Treads Armored Treads Leg Carbon-fiber Leg Hover Unit Gyrokinetic Inverter Flight Unit VTOL Module Utility Advanced Heat Sink Device Advanced Heat Sink Storage Large Storage Unit Processor Advanced Signal Interpreter Protection Hardened Light Armor Plating Weapon Thermic Laser Energy Gun Thermic Laser Energy Cannon Heavy Particle Cannon Ballistic Gun Light Assault Rifle Ballistic Cannon Assault Cannon Launcher Smartbomb Launcher Build | -11 -10 -9 -8 -7 -7 -6 -5 -5 -5 -4 -3 ------- Run | Yrd Mat Mat Mat Fac DSF Fac Fac Upp Upp Fac Res Slots Evolved 14 | . . 2 2 2 . 2 2 . . 2 2 Power 1 | . . . . . . . . . . 1 . Propulsion 4 | . . . 1 . . 1 1 . . 1 . Utility 8 | . . 1 1 2 . 1 1 . . . 2 Weapon 1 | . . 1 . . . . . . . . . Parts Attached 160 | 6 11 18 22 1 8 24 38 3 . 9 20 Power 18 | 1 1 1 4 . 1 1 5 . . . 4 Engine 8 | 1 1 1 1 . 1 . 3 . . . . Core 7 | . . . 3 . . 1 1 . . . 2 Reactor 3 | . . . . . . . 1 . . . 2 Propulsion 41 | 2 2 6 5 . 3 1 15 . . 3 4 Treads 25 | 2 2 5 5 . 3 1 4 . . . 3 Leg 5 | . . . . . . . 4 . . 1 . Wheel . | . . . . . . . . . . . . Hover 1 | . . . . . . . 1 . . . . Flight 10 | . . 1 . . . . 6 . . 2 1 Utility 50 | 1 3 6 5 1 3 11 8 2 . 5 5 Device 22 | . 1 3 2 . 2 3 4 1 . 4 2 Storage 12 | 1 2 2 . . 1 2 3 . . 1 . Processor 6 | . . 1 . . . 1 1 1 . . 2 Hackware . | . . . . . . . . . . . . Protection 10 | . . . 3 1 . 5 . . . . 1 Artifact . | . . . . . . . . . . . . Weapon 51 | 2 5 5 8 . 1 11 10 1 . 1 7 Energy Gun 39 | 1 5 4 4 . 1 11 7 1 . 1 4 Energy Cannon 3 | . . . 1 . . . 1 . . . 1 Ballistic Gun 5 | 1 . 1 1 . . . 1 . . . 1 Ballistic Cannon 3 | . . . 2 . . . . . . . 1 Launcher 1 | . . . . . . . 1 . . . . Special Weapon . | . . . . . . . . . . . . Impact Weapon . | . . . . . . . . . . . . Slashing Weapon . | . . . . . . . . . . . . Piercing Weapon . | . . . . . . . . . . . . Special Melee Weapon . | . . . . . . . . . . . . Unidentified Prototypes 8 | . . 2 . . . . . . . 1 5 Corrupted Parts 2 | . . . . . . . 2 . . . . System Corruption 12 | . . . . . . . 12 . . . . Parts Lost 63 | . . 3 14 . 3 5 25 . . 2 11 Power 8 | . . . 3 . . 1 3 . . . 1 Propulsion 20 | . . 2 3 . . . 9 . . . 6 Utility 17 | . . . 4 . 1 4 4 . . 2 2 Weapon 18 | . . 1 4 . 2 . 9 . . . 2 Highest Loss Streak 7 | . . 1 7 . 2 2 6 . . 2 6 To Critical Strikes 1 | . . . 1 . . . . . . . . Average Slot Usage (%) 89 | . 99 99 96 92 94 94 80 77 88 83 63 Engine 5 | . 14 11 1 . 2 4 1 5 5 5 1 Core 1 | . . . 6 7 4 1 2 . . . . Treads 18 | . 28 21 26 23 23 26 12 . . . 1 Flight 3 | . . . . . . . 2 23 23 26 16 Device 16 | . 13 21 11 23 22 15 16 23 29 25 18 Storage 8 | . 14 11 9 7 11 13 5 . . . . Processor 5 | . . . 7 . . 1 10 11 17 14 13 Protection 4 | . . . 7 7 7 10 7 . . . . Energy Gun 19 | . 25 32 19 15 15 19 13 5 5 5 3 Naked Turns . | . . . . . . . . . . . . Heaviest Build 78 | 13 30 35 40 47 59 72 78 28 28 31 33 Greatest Support 225 | 40 40 44 66 60 60 88 132 28 28 32 225 Greatest Overweight (x) 24 | . . 1 . . . . 24 . . . 1 Average Overweight (x) . | . . . . . . . . . . . . Largest Inventory Capacity 20 | 8 15 15 15 15 15 15 20 5 5 5 5 Average Capacity 13 | 7 10 15 15 15 15 15 16 5 5 5 5 Most Carried 15 | 2 12 15 15 14 15 15 15 5 5 5 5 Average Carried 11 | 1 8 13 12 14 14 14 12 5 5 4 4 Final Capacity 15 | 8 15 15 15 15 15 15 5 5 5 5 5 Final Carried 15 | 2 12 15 15 14 15 15 5 5 5 5 2 Class Distribution -------------------- 24% | Skirmisher 16% | Mutant 15% | Tank 14% | Scavenger-Tank 10% | Scavenger-Skirmisher 9% | Scavenger-Sprinter Dominant Class ---------------- Mutant | -10/Materials Skirmisher | -9/Materials Tank | -8/Materials Tank | -7/Factory Scavenger-Tank | -7/DSF Scavenger-Tank | -6/Factory Skirmisher | -5/Factory Scavenger-Sprinter | -5/Upper Caves Scavenger-Scout | -5/Upper Caves Scavenger-Scout | -4/Factory Infiltrator-Sprinter | -3/Research Resources | -11 -10 -9 -8 -7 -7 -6 -5 -5 -5 -4 -3 ----------- Run | Yrd Mat Mat Mat Fac DSF Fac Fac Upp Upp Fac Res Matter Collected 1888 | 240 255 215 413 . 50 259 426 28 . 2 . Remotely . | . . . . . . . . . . . . Salvage Created 5184 | 70 315 845 618 . 144 812 2182 78 . . 120 Parts 188 | . 15 37 36 . 7 36 48 8 . . 1 Haulers Intercepted 5 | . 1 2 . . . . 1 . . . 1 Recyclers Shooed 3 | . . 1 . . . 1 1 . . . . Parts Field Recycled . | . . . . . . . . . . . . Retrieved Matter . | . . . . . . . . . . . . Parts Self-Destructed 6 | . . . . . . . . 6 . . . Prevented . | . . . . . . . . . . . . Kills | -11 -10 -9 -8 -7 -7 -6 -5 -5 -5 -4 -3 ------- Run | Yrd Mat Mat Mat Fac DSF Fac Fac Upp Upp Fac Res Combat Hostiles Destroyed 110 | . 9 21 19 . 2 14 37 8 . . . Guns 68 | . 9 20 8 . . 12 19 . . . . Cannons 13 | . . . 10 . 2 . 1 . . . . AOE 9 | . . . . . . . 1 8 . . . Classes Destroyed 12 | 1 3 3 3 . 1 1 . . . . . Worker 5 | . . 1 2 . . 1 1 . . . . Hauler 5 | . 1 2 . . . . 1 . . . 1 Recycler 3 | 1 . 1 . . . 1 . . . . . Watcher 3 | . . . 1 . . 2 . . . . . Swarmer 34 | . 3 7 6 . . 4 6 8 . . . Grunt 51 | . 6 9 7 . . 6 23 . . . . Brawler 1 | . . 1 . . . . . . . . . Sentry 8 | . . 4 3 . . . 1 . . . . Specialist 2 | . . . . . 2 . . . . . . Hunter 9 | . . . 2 . . 3 4 . . . . Programmer 3 | . . . . . . 1 2 . . . . Heavy 2 | . . . 1 . . . 1 . . . . Best Kill Streak 8 | 1 2 5 5 . 2 4 8 5 . . 1 Combat Bots Only 8 | . 2 5 5 . 2 4 8 4 . . . Max Kills in Single Turn 3 | 1 1 2 1 . 1 1 1 3 . . 1 Gunslinging 1 | . . 1 . . . . . . . . . Exploded 3 | . . . . . . . 1 3 . . . Melee . | . . . . . . . . . . . . Uniques/NPCs Destroyed . | . . . . . . . . . . . . Combat | -11 -10 -9 -8 -7 -7 -6 -5 -5 -5 -4 -3 -------- Run | Yrd Mat Mat Mat Fac DSF Fac Fac Upp Upp Fac Res Hostile Shots Fired 1051 | . 59 79 193 . 31 107 273 8 . 4 297 Missed 286 | . 10 22 45 . 6 25 75 4 . 2 97 Damage Taken 13442 | . 472 591 2096 . 540 1427 3883 68 . 88 4277 Core 2403 | . 44 70 215 . 72 120 510 35 . 23 1314 Absorbed by Shields . | . . . . . . . . . . . . Reduced by Siege Mode 480 | . . . . . . . . . . . 480 Redirected to Shielding 213 | . . . 102 . . . 111 . . . . Ignored by Resistances 162 | . . . . . . . . . . . 162 Core Remaining (%) 80 | 100 82 82 60 . 89 85 . . 45 98 . Volleys Fired 329 | 4 35 50 51 . 4 44 118 6 . 5 12 Largest 3 | 2 2 3 3 . 3 3 3 1 . 1 2 Hottest 255 | 70 115 180 196 . 196 255 255 46 . 75 93 Shots Fired 783 | 8 70 147 100 . 12 132 285 6 . 5 18 Gun 714 | 8 70 147 55 . 8 132 272 . . 5 17 Cannon 62 | . . . 45 . 4 . 12 . . . 1 Launcher 7 | . . . . . . . 1 6 . . . Special . | . . . . . . . . . . . . Kinetic 97 | 4 21 . 49 . . . 16 . . . 7 Thermal 641 | 4 49 147 51 . 12 126 247 . . 5 . Explosive 7 | . . . . . . . 1 6 . . . Electromagnetic 38 | . . . . . . 6 21 . . . 11 Robot Hit Streak 21 | 4 8 16 21 . 4 21 16 3 . 2 5 Robot Miss Streak 5 | 2 4 4 5 . 3 3 4 . . 2 3 Penetration Max . | . . . . . . . . . . . . Secondary Targets 15 | . 1 3 2 . . 4 5 . . . . Max Gunslinging Chain 1 | . 1 1 1 . . 1 1 . . . . Shots Hit Robots 536 | 4 45 98 82 . 7 84 201 2 . 2 11 Core Hits 256 | 2 18 55 47 . 4 40 75 11 . . 4 Critical Kills . | . . . . . . . . . . . . Critical Parts Destroyed . | . . . . . . . . . . . . Critical Strikes 48 | 1 2 6 6 . . 4 29 . . . . Burn 47 | 1 2 6 5 . . 4 29 . . . . Blast 1 | . . . 1 . . . . . . . . Melee Attacks . | . . . . . . . . . . . . Impact . | . . . . . . . . . . . . Slashing . | . . . . . . . . . . . . Piercing . | . . . . . . . . . . . . Sneak Attacks . | . . . . . . . . . . . . Combat Hostiles . | . . . . . . . . . . . . Follow-up Attacks . | . . . . . . . . . . . . Damage Inflicted 10624 | 53 528 1362 1589 . 145 1450 4180 1012 . 40 265 Guns 8016 | 53 528 1362 706 . 70 1450 3542 . . 40 265 Cannons 1305 | . . . 883 . 75 . 347 . . . . Explosions 1303 | . . . . . . . 291 1012 . . . Melee . | . . . . . . . . . . . . Ramming . | . . . . . . . . . . . . Kinetic 1413 | 27 96 . 959 . . . 214 . . . 117 Thermal 7299 | 26 432 1362 630 . 145 1408 3256 . . 40 . Explosive 1303 | . . . . . . . 291 1012 . . . Electromagnetic 609 | . . . . . . 42 419 . . . 148 Impact . | . . . . . . . . . . . . Slashing . | . . . . . . . . . . . . Piercing . | . . . . . . . . . . . . Highest Corruption 32 | . . . . . . . 13 13 13 . 32 Average Corruption 9 | . . . . . . . 6 13 13 . 15 Corruption Purged . | . . . . . . . . . . . . Corruption Blocked . | . . . . . . . . . . . . Effects 31 | . . . . . . . 14 9 1 . 7 Message Errors 4 | . . . . . . . 2 1 . . 1 Matter Fused 2 | . . . . . . . 1 1 . . . Heat Flow Errors 6 | . . . . . . . 3 2 . . 1 Energy Discharges 4 | . . . . . . . 3 . . . 1 Parts Rejected 1 | . . . . . . . 1 . . . . Data Loss (minor) 5 | . . . . . . . 2 1 1 . 1 Misfires 2 | . . . . . . . 2 . . . . Alerts 1 | . . . . . . . . 1 . . . Misdirections 6 | . . . . . . . . 3 . . 3 Overload Shots . | . . . . . . . . . . . . Overflow Damage 65 | . . . 10 . . . . 55 . . . Projectiles 10 | . . . 10 . . . . . . . . Explosions 55 | . . . . . . . . 55 . . . Melee . | . . . . . . . . . . . . Knockbacks 6 | . . . 6 . . . . . . . . Impact . | . . . . . . . . . . . . Kinetic 5 | . . . 5 . . . . . . . . Secondary 1 | . . . 1 . . . . . . . . Self-Inflicted Damage . | . . . . . . . . . . . . Shots . | . . . . . . . . . . . . Rammed . | . . . . . . . . . . . . Targets Rammed . | . . . . . . . . . . . . Kicked . | . . . . . . . . . . . . Crushed . | . . . . . . . . . . . . Highest Temperature 396 | 60 225 396 292 . . 293 362 243 . 79 96 Average Temperature 104 | 24 89 119 82 . . 93 119 96 . 38 16 Received Heat Transfer 2575 | . 168 162 657 . 12 342 1063 9 . . 162 Effects 10 | . . 4 . . . . 5 1 . . . Energy Bleed 3 | . . 1 . . . . 2 . . . . Interference 6 | . . 3 . . . . 2 1 . . . Damage (minor) 1 | . . . . . . . 1 . . . . Siege Activations 1 | . . . . . . . . . . . 1 Total Turns 22 | . . . . . . . . . . . 22 Longest Duration 22 | . . . . . . . . . . . 22 Robots Corrupted 2 | . . . . . . . 2 . . . . Combat Hostiles 2 | . . . . . . . 2 . . . . Parts Fried 1 | . . . . . . . 1 . . . . Impact Corruptions . | . . . . . . . . . . . . Robots Melted 20 | . . 1 1 . . 3 15 . . . . Combat Hostiles 18 | . . 1 1 . . 2 14 . . . . Parts Melted 82 | 1 3 12 5 . . 11 50 . . . . Heat Transferred 22531 | 148 1406 3830 1766 . 296 3523 11488 . . 74 . Parts Sabotaged . | . . . . . . . . . . . . Parts Stolen . | . . . . . . . . . . . . Parts Stripped . | . . . . . . . . . . . . Power Chain Reactions . | . . . . . . . . . . . . Alert | -11 -10 -9 -8 -7 -7 -6 -5 -5 -5 -4 -3 ------- Run | Yrd Mat Mat Mat Fac DSF Fac Fac Upp Upp Fac Res Peak Influence 532 | 5 197 361 433 196 187 289 532 . . 355 219 Initial 307 | . 3 33 152 196 137 90 65 . . 307 175 Average 198 | . 97 172 268 196 154 153 273 . . 325 176 Maximum Alert Level 2 | . . 1 2 . . 1 2 . . 1 1 Low Security (%) 55 | 100 100 67 36 100 100 66 15 . . . 91 Level 1 42 | . . 32 55 . . 33 80 . . 100 8 Level 2 1 | . . . 8 . . . 3 . . . . Level 3 . | . . . . . . . . . . . . Level 4 . | . . . . . . . . . . . . Level 5 . | . . . . . . . . . . . . High Security . | . . . . . . . . . . . . Max Security . | . . . . . . . . . . . . Squads Dispatched 32 | . 3 3 5 . 1 1 14 . . 1 4 Investigation 4 | . 1 . 1 . . . 1 . . . 1 Extermination 3 | . . . . . . 1 1 . . . 1 Reinforcement 14 | . 2 3 2 . 1 . 3 . . 1 2 Assault . | . . . . . . . . . . . . Garrison 11 | . . . 2 . . . 9 . . . . Intercept . | . . . . . . . . . . . . Searches Triggered . | . . . . . . . . . . . . Construction Impeded 1 | . . . 1 . . . . . . . . Haulers Reinforced 2 | . . . . . . . 1 . . . 1 Active Scanning Responses . | . . . . . . . . . . . . Cargo Convoy Interrupts . | . . . . . . . . . . . . Stealth | -11 -10 -9 -8 -7 -7 -6 -5 -5 -5 -4 -3 --------- Run | Yrd Mat Mat Mat Fac DSF Fac Fac Upp Upp Fac Res Distress Signals 11 | . 2 1 4 . . 2 1 . . 1 . Communications Jammed 1 | . . . . . . . . . . 1 . Distress Signals 1 | . . . . . . . . . . 1 . Times Spotted 181 | . 16 26 32 . 5 21 52 13 . 4 12 Peak Tracking Total 9 | . 5 5 8 . 2 5 6 9 . 4 9 Tactical Retreats 14 | . 2 . 6 . 1 . 2 2 . . 1 Traps | -11 -10 -9 -8 -7 -7 -6 -5 -5 -5 -4 -3 ------- Run | Yrd Mat Mat Mat Fac DSF Fac Fac Upp Upp Fac Res Traps Triggered 4 | . 1 . . . . . . . . 1 2 Indirectly . | . . . . . . . . . . . . Trap Hack Attempts . | . . . . . . . . . . . . Triggered . | . . . . . . . . . . . . Disarmed . | . . . . . . . . . . . . Reprogrammed . | . . . . . . . . . . . . Reused . | . . . . . . . . . . . . Traps Extracted . | . . . . . . . . . . . . Installed . | . . . . . . . . . . . . Triggered . | . . . . . . . . . . . . Machines | -11 -10 -9 -8 -7 -7 -6 -5 -5 -5 -4 -3 ---------- Run | Yrd Mat Mat Mat Fac DSF Fac Fac Upp Upp Fac Res Machines Disabled 2 | . . . . . . . 2 . . . . Max in Single Turn 2 | . . . . . . . 2 . . . . Machines Repaired . | . . . . . . . . . . . . Machines Dismantled . | . . . . . . . . . . . . Machines Sabotaged . | . . . . . . . . . . . . Overloaded Fab Kills . | . . . . . . . . . . . . Hacking | -11 -10 -9 -8 -7 -7 -6 -5 -5 -5 -4 -3 --------- Run | Yrd Mat Mat Mat Fac DSF Fac Fac Upp Upp Fac Res Machines Accessed 20 | . 2 3 2 1 . 5 3 1 . 2 1 Terminals 14 | . 2 3 2 1 . 2 2 . . 1 1 Fabricators 3 | . . . . . . 3 . . . . . Repair Stations . | . . . . . . . . . . . . Recycling Units 2 | . . . . . . . 1 . . 1 . Scanalyzers . | . . . . . . . . . . . . Garrison Access . | . . . . . . . . . . . . Total Hacks 38 | . 4 5 4 1 . 10 6 1 . 5 2 Successful 13 | . 1 . . 1 . 6 1 1 . 2 1 Failed 25 | . 3 5 4 . . 4 5 . . 3 1 Catastrophic 11 | . 1 4 2 . . 2 1 . . . 1 Database Lockouts . | . . . . . . . . . . . . Manual 24 | . 4 5 1 . . 4 5 . . 3 2 Terminals 29 | . 4 5 4 1 . 5 5 . . 3 2 Fabricators 5 | . . . . . . 5 . . . . . Repair Stations . | . . . . . . . . . . . . Recycling Units 3 | . . . . . . . 1 . . 2 . Scanalyzers . | . . . . . . . . . . . . Garrison Access . | . . . . . . . . . . . . Terminal Hacks 9 | . 1 . . 1 . 4 . 1 . 1 1 Record 1 | . . . . . . . . . . . 1 Open Door 1 | . . . . . . . . 1 . . . Open DSF 2 | . . . . 1 . 1 . . . . . Branch Access Points 1 | . . . . . . 1 . . . . . Alert Level 1 | . . . . . . 1 . . . . . Recall Investigation 1 | . 1 . . . . . . . . . . Registered Components 2 | . . . . . . 1 . . . 1 . Fabricator Hacks 2 | . . . . . . 2 . . . . . Network Status 1 | . . . . . . 1 . . . . . Build 1 | . . . . . . 1 . . . . . Repair Station Hacks . | . . . . . . . . . . . . Recycling Unit Hacks 2 | . . . . . . . 1 . . 1 . Retrieve Components 2 | . . . . . . . 1 . . 1 . Scanalyzer . | . . . . . . . . . . . . Garrison Access Hacks . | . . . . . . . . . . . . Unauthorized Hacks . | . . . . . . . . . . . . Terminals . | . . . . . . . . . . . . Fabricators . | . . . . . . . . . . . . Repair Stations . | . . . . . . . . . . . . Recycling Units . | . . . . . . . . . . . . Scanalyzers . | . . . . . . . . . . . . Garrison Access . | . . . . . . . . . . . . Data Cores Recovered . | . . . . . . . . . . . . Used . | . . . . . . . . . . . . Hacking Detections 17 | . 2 3 2 . . 4 3 . . 2 1 Full Trace Events 1 | . . . 1 . . . . . . . . Feedback Events . | . . . . . . . . . . . . Feedback Blocked . | . . . . . . . . . . . . Robot Schematics Acquired . | . . . . . . . . . . . . Robots Built . | . . . . . . . . . . . . Authchips . | . . . . . . . . . . . . Time . | . . . . . . . . . . . . Total Robot Build Rating . | . . . . . . . . . . . . Part Schematics Acquired . | . . . . . . . . . . . . Parts Built 2 | . . . . . . 2 . . . . . Authchips . | . . . . . . . . . . . . Time 47 | . . . . . . 47 . . . . . Total Part Build Rating 10 | . . . . . . 10 . . . . . Parts Repaired . | . . . . . . . . . . . . Time . | . . . . . . . . . . . . Parts Recycled . | . . . . . . . . . . . . Recycled Matter . | . . . . . . . . . . . . Retrieved Matter . | . . . . . . . . . . . . Retrieved Components 2 | . . . . . . . 2 . . . . Parts Scanalyzed . | . . . . . . . . . . . . Part Schematics Acquired . | . . . . . . . . . . . . Parts Damaged . | . . . . . . . . . . . . Bothacking | -11 -10 -9 -8 -7 -7 -6 -5 -5 -5 -4 -3 ------------ Run | Yrd Mat Mat Mat Fac DSF Fac Fac Upp Upp Fac Res Used RIF Installer . | . . . . . . . . . . . . Robots Hacked . | . . . . . . . . . . . . Non-combat . | . . . . . . . . . . . . Combat . | . . . . . . . . . . . . Robot Hacks Applied . | . . . . . . . . . . . . Relay Couplers Released . | . . . . . . . . . . . . Fabnet Peak Effective % . | . . . . . . . . . . . . Robots Rewired . | . . . . . . . . . . . . Allies Hacked . | . . . . . . . . . . . . Hacks Repelled . | . . . . . . . . . . . . Allies | -11 -10 -9 -8 -7 -7 -6 -5 -5 -5 -4 -3 -------- Run | Yrd Mat Mat Mat Fac DSF Fac Fac Upp Upp Fac Res Total Allies . | . . . . . . . . . . . . Largest Group . | . . . . . . . . . . . . Highest-Rated Group . | . . . . . . . . . . . . Highest-Rated Ally . | . . . . . . . . . . . . Total Orders . | . . . . . . . . . . . . Ally Attacks . | . . . . . . . . . . . . Total Damage . | . . . . . . . . . . . . Kills . | . . . . . . . . . . . . Allies Corrupted . | . . . . . . . . . . . . Allies Melted . | . . . . . . . . . . . . Intel | -11 -10 -9 -8 -7 -7 -6 -5 -5 -5 -4 -3 ------- Run | Yrd Mat Mat Mat Fac DSF Fac Fac Upp Upp Fac Res Robot Analysis Total . | . . . . . . . . . . . . Derelict Logs Recovered . | . . . . . . . . . . . . Drone Launches . | . . . . . . . . . . . . Drone Recoveries . | . . . . . . . . . . . . Exploration | -11 -10 -9 -8 -7 -7 -6 -5 -5 -5 -4 -3 ------------- Run | Yrd Mat Mat Mat Fac DSF Fac Fac Upp Upp Fac Res Turns Passed 6105 | 128 751 1042 754 9 162 922 1558 196 16 120 447 Spaces Moved 3968 | 68 367 499 319 6 72 422 744 613 53 253 552 Core 83 | 2 . . . . . . 1 . . . 80 Treads 2104 | 66 367 499 319 6 72 422 349 . . . 4 Legs 20 | . . . . . . . 20 . . . . Wheels . | . . . . . . . . . . . . Hover 37 | . . . . . . . 37 . . . . Flight 1724 | . . . . . . . 337 613 53 253 468 Fastest Speed 26 | 50 160 145 145 160 160 167 26 29 29 26 26 Average Speed 105 | 156 160 151 148 160 168 167 132 29 29 26 32 Slowest Speed 1250 | 160 160 240 160 160 170 167 1250 29 29 29 180 Overloaded Moves . | . . . . . . . . . . . . Propulsion Burnouts . | . . . . . . . . . . . . Robots Hopped . | . . . . . . . . . . . . Cave-ins Triggered . | . . . . . . . . . . . . Exploration Rate (%) 27 | 5 49 42 31 . 42 10 14 72 8 9 17 Regions Visited 11 Branch Regions 2 Pre-discovered Areas . | . . . . . . . . . . . . Known Exits Taken 6 | . . 1 . 1 . . 1 1 1 1 . Unknown Exits Taken 4 | 1 1 . 1 . . 1 . . . . . Scrap Searched 2 | . . . . . . . . 2 . . . Spaces Dug 1 | . . . . . . . . . . . 1 Terrain Destroyed 146 | . . . 5 . . . 21 117 . 1 2 Melee . | . . . . . . . . . . . . Projectile 9 | . . . 5 . . . 1 . . 1 2 AOE 137 | . . . . . . . 20 117 . . . Terrain Rammed . | . . . . . . . . . . . . Walls Destroyed . | . . . . . . . . . . . . Machines Disabled . | . . . . . . . . . . . . Actions | -11 -10 -9 -8 -7 -7 -6 -5 -5 -5 -4 -3 --------- Run | Yrd Mat Mat Mat Fac DSF Fac Fac Upp Upp Fac Res Total 5249 | 79 465 677 513 6 108 540 1088 622 52 299 800 Wait 616 | . 34 79 98 . 6 18 158 . . 26 197 Move 3957 | 67 366 498 318 5 71 421 743 612 52 252 552 Hop . | . . . . . . . . . . . . Pick Up 97 | 2 12 17 20 . 9 18 17 . . 2 . Fast Attach 52 | 6 2 2 1 . . 5 15 3 . 5 13 Attach 58 | . . 5 17 1 3 8 19 . . 1 4 Detach 7 | . . 2 . . . 1 2 . . . 2 Swap 50 | . 9 11 4 . 5 11 4 . . 3 3 Drop 83 | . 7 13 4 . 10 14 12 1 . 5 17 Fire 329 | 4 35 50 51 . 4 44 118 6 . 5 12 Melee . | . . . . . . . . . . . . Ram . | . . . . . . . . . . . . Kick . | . . . . . . . . . . . . Crush . | . . . . . . . . . . . . Escape Stasis . | . . . . . . . . . . . . Rewire . | . . . . . . . . . . . . Trap . | . . . . . . . . . . . . Miscellaneous . | . . . . . . . . . . . . Route ------- -11/Scrapyard -10/Materials -9/Materials -8/Materials -7/Factory -7/DSF -6/Factory (discovered 5 exits: *Fac / Low x2 / Ext x2) -5/Factory -5/Upper Caves -5/Upper Caves -4/Factory -3/Research History --------- Turn | Location | Event 17 | -11/Scrapyard | Discovered new exit (range 16) 129 | -11/Scrapyard | Entered Materials 310 | -10/Materials | Build established: Mutant 860 | -10/Materials | Discovered new exit (range 11) 880 | -10/Materials | Entered another Materials area 880 | -9/Materials | Evolved 2 slots: Utility x1, Weapon x1 1640 | -9/Materials | Build established: Skirmisher 1899 | -9/Materials | Discovered new exit (range 3) 1904 | -9/Materials | Identified exit to Materials 1922 | -9/Materials | Entered another Materials area 1922 | -8/Materials | Evolved 2 slots: Propulsion x1, Utility x1 2210 | -8/Materials | Build established: Tank 2334 | -8/Materials | Discovered new exit (range 15) 2431 | -8/Materials | Lost 5 parts (1p1n1u2w) 2478 | -8/Materials | Garrison activated, responded to threat 2559 | -8/Materials | Lost 7 parts (1p2n3u1w) 2676 | -8/Materials | Entered Factory 2676 | -7/Factory | Evolved 2 slots: Utility x2 2685 | -7/Factory | Identified exit to DSF 2685 | -7/Factory | Entered DSF 2758 | -7/DSF | Additional patrols routed to DSF 2805 | -7/DSF | Discovered new exit (range 16) 2847 | -7/DSF | Entered Factory 2847 | -6/Factory | Evolved 2 slots: Propulsion x1, Utility x1 3160 | -6/Factory | Build established: Scavenger-Tank 3421 | -6/Factory | Identified exit to Lower Caves 3421 | -6/Factory | Identified exit to Extension 3676 | -6/Factory | Discovered new exit (range 3) 3699 | -6/Factory | Fabricated Matter Compressor (x2) 3769 | -6/Factory | Entered another Factory area 3769 | -5/Factory | Evolved 2 slots: Propulsion x1, Utility x1 3867 | -5/Factory | Build established: Tank 3996 | -5/Factory | Destroyed 8 combat bots 4043 | -5/Factory | Garrison activated, responded to threat 4262 | -5/Factory | Lost 5 parts (4n1w) 4312 | -5/Factory | Build established: Skirmisher 4368 | -5/Factory | Garrison activated, responded to threat 4753 | -5/Factory | Garrison activated, responded to threat 4795 | -5/Factory | Lost 3 parts (1p1u1w) 5029 | -5/Factory | Lost 5 parts (1p2n1u1w) 5116 | -5/Factory | System corruption reached 10% 5138 | -5/Factory | Lost 6 parts (2u4w) 5276 | -5/Factory | Core integrity fell below 50% 5309 | -5/Factory | Discovered new exit (range 13) 5325 | -5/Factory | Identified exit to Upper Caves 5327 | -5/Factory | Entered Upper Caves 5373 | -5/Upper Caves | Build established: Scavenger-Sprinter 5487 | -5/Upper Caves | Discovered new exit (range 13) 5491 | -5/Upper Caves | Identified exit to Upper Caves 5523 | -5/Upper Caves | Entered another Upper Caves area 5534 | -5/Upper Caves | Discovered new exit (range 14) 5538 | -5/Upper Caves | Identified exit to Factory 5539 | -5/Upper Caves | Entered Factory 5539 | -4/Factory | Evolved 2 slots: Power x1, Propulsion x1 5646 | -4/Factory | Discovered new exit (range 8) 5658 | -4/Factory | Identified exit to Research 5659 | -4/Factory | Entered Research 5659 | -3/Research | Evolved 2 slots: Utility x2 5853 | -3/Research | Found Prototype Device 5853 | -3/Research | Identified Exp. Thermal Shield 5854 | -3/Research | Found Prototype Protection 5854 | -3/Research | Identified Centrium Heavy Armor Plating 5866 | -3/Research | Found Prototype Processor 5866 | -3/Research | Identified Spectral Analyzer 6026 | -3/Research | System corruption reached 10% 6047 | -3/Research | Lost 3 parts (1n1u1w) 6067 | -3/Research | Core integrity fell below 50% 6088 | -3/Research | Core integrity fell below 20% 6090 | -3/Research | System corruption reached 30% 6098 | -3/Research | Lost 6 parts (1p4n1w) 6106 | -3/Research | Destroyed by P-80 Master with Gamma Rifle Last Messages --------------- 06062_ Dropped Exp. Thermal Shield. 06064_ Imp. Heavy Siege Treads destroyed. 06066_ Acquired Q-thruster. 06066_ Penetrated by Slug. 06066_ Slug penetrates Wall. 06067_ Q-thruster destroyed. 06068_ P-80 Master resets Y-72 Warden, system corruption cleaned. 06069_ Slug penetrates Wall. 06069_ Penetrated by Slug. 06069_ Slug penetrates Wall. 06069_ Penetrated by Slug. 06070_ Wall collapses. 06070_ Slug penetrates Wall. 06076_ Slug penetrates P-80 Master. 06086_ System corrupted: Energy discharge (-31). 06091_ Door malfunctions. 06093_ O-32 Director: "IFF HANDSHAKE FAILED. SECURING TERMINAL." 06101_ ALERT: Hostiles spotted, dispatching reinforcements to Terminal R019. 06106_ Adv. Heat Sink destroyed. Map ----- +----------------------------------------------------+ | ?????????????????????????????????????????????????? | | ?????????????????????????????????????????????????? | | ?????????????????????????????????????????????????? | | ?????????????????????????????????????????????????? | | ?????????????????????????????????????????????????? | | ?????????????????????????????????????????????????? | | ?????????????????????????????????????????????????? | | ?????????????????????????????????????????????????? | | ?????????????????????????????????????????????????? | | ?????????????????????????????????????????????????? | | ?????????????????????????????????????????????????? | | ?????????????????????????????????????????????????? | | ?????????????????????????????????????????????????? | | ?????????????????????????????????????????????????? | | ?????????????????????????????????????????????????? | | ?????????????????????????????????????????????????? | | ?????????????????????????????????????????????????? | | ??????????????????????????????????????##########?? | | ????????????????######????????????????# ?? | | ??????????????#"""T"""????????????????# ??? | | ???????????####""" """###?????????????# ???? | | ???????????# #?????????????# ????? | | ???????????# #?????????????# #?????? | | ???????????# #?????????????# #?????? | | ???????????# ##########+#### ####### | | ???????????# #@ | | ???????????# + | | ???????????# # p | | ???????????# + p p | | ???????????# ! ####+######+########## | | ???????????# #? ??? ????????# | | ???????????# ## = #?? ????????# | | ???????????# ## #? ???????# | | ???????????############### #? ???????# | | ?????????????????????????# # """ ??????# | | ?????????????????????????# # "Y ??????# | | ?????????????????????????# # """ ?????# | | ?????????????????????????# # ?????# | | ?????????????????????????# # ?? ! #????# | | ?????????????????????????# ##########????# | | ?????????????????????????# # #????????# | | ?????????????????????????# # ########## | | ?????????????????????????####### + | | ???????????????????????????????# # #######/## | | ???????????????????????????????# # # | | ???????????????????????????????# + + | | ???????????????????????????????# ##### | | ???????????????????????????????# #???# | | ???????????????????????????????# #???# | | ???????????????????????????????######???# | +----------------------------------------------------+ Best States ------------- Heat Dissipation 87 Energy Generation 35 Energy Capacity 550 Matter Stores 430 Matter Capacity 550 Sight Range 16 Robot Scan Range 18 Terrain Scan Range 14 Terrain Scan Density 10 ECM Strength 2 Jamming Range 16 Armor Coverage 825 Resistance: TH 30 Propulsion Shielding 66 Utility Shielding 66 Evasion (%) 64 Melee Accuracy 6 Recoil Reduction 6 Salvage Targeting 2 Item Schematics ----------------- None Robot Schematics ------------------ None Fabricated ------------ Matter Compressor | x2 | -6/Factory | Preloaded Alien Tech Used ----------------- None Achievements -------------- None Challenges ------------ None Game ------ Seed CoordinationGlidesysBay Manual? 0 Play Time 01:31:09 Cumulative 39.4 hours Start 2024.04.20 @ 01:37:50 End 2024.04.20 @ 03:38:55 Sessions 3 Manual Loads 0 Difficulty Rogue Special Mode None Game No. 72 Rogue 67 Adventurer 5 Explorer 0 Win Type - Total 0 Types 0/0/0/0/0/0/0/0/0 Lore% 12 Gallery% 46 Achievement% 30 Wizard Run 0 Options --------- Layout 0 ASCII 0 Keyboard 0 Movement Mouse Keybinds 0 Fullscreen 2 Font 24/Smallcaps Map View 76x50 Zoom Use 36% Tactical HUD 1 Map Filters NONE Filters NONE Steam 1 RUN: 39fde10c-ec71-4107-a04c-a666afea8609